Cogmind - Beta 16 @@@ ROGUE MODE // 2025.11.08 @ 22:27:39 Player: guru-sr Result: Destroyed by S-10 Pest with Light Assault Rifle Performance ------------- Evolutions (0) 0 Regions Visited (2) 400 Robots Destroyed (5) 25 Value Destroyed (128) 128 Prototype IDs (0) 0 Alien Tech Used (0) 0 Bonus (0) 0 TOTAL SCORE: 553 Bonus ------- None Cogmind --------- Core Integrity 0/250 Matter 300/300 Energy 100/100 System Corruption 0% Temperature Cool (0) Movement Core (400) Ox7 Location -10/Mines Parts ------- > --- POWER (1) -------- (None) > --- PROPULSION (2) --- (None) > --- UTILITY (2) ------ Large Storage Unit Seismic Detector > --- WEAPON (2) ------- Light Assault Rifle Light Assault Rifle > --- INVENTORY (15) --- Light Ion Engine Light Nuclear Core Aluminum Leg Aluminum Leg Heat Sink Improved Heat Sink Large Storage Unit High-capacity Battery (250) Medium Matter Pod (5) Improved Terrain Scanner Tractor Beam Grenade Launcher Peak State ------------ > --- POWER ------------ Ion Engine > --- PROPULSION ------- Aluminum Leg Aluminum Leg > --- UTILITY ---------- Improved Terrain Scanner Seismic Detector > --- WEAPON ----------- Light Assault Rifle Light Assault Rifle > --- INVENTORY -------- Light Ion Engine Wheel Wheel Small Laser Assault Rifle [Rating: 9] Favorites ----------- Power Ion Engine Engine Ion Engine Propulsion Wheel Leg Aluminum Leg Wheel Wheel Utility Seismic Detector Device Seismic Detector Storage Large Storage Unit Weapon Light Assault Rifle Ballistic Gun Light Assault Rifle Build | -11 -10 -10 ------- Run | Yrd Mat Min Slots Evolved . | . . . Power . | . . . Propulsion . | . . . Utility . | . . . Weapon . | . . . Parts Attached 13 | 9 4 . Power 3 | 2 1 . Engine 3 | 2 1 . Core . | . . . Reactor . | . . . Propulsion 4 | 2 2 . Treads . | . . . Leg 2 | 2 . . Wheel 2 | . 2 . Hover . | . . . Flight . | . . . Utility 3 | 2 1 . Device 2 | 2 . . Storage 1 | . 1 . Processor . | . . . Hackware . | . . . Protection . | . . . Artifact . | . . . Weapon 3 | 3 . . Energy Gun . | . . . Energy Cannon . | . . . Ballistic Gun 3 | 3 . . Ballistic Cannon . | . . . Launcher . | . . . Special Weapon . | . . . Impact Weapon . | . . . Slashing Weapon . | . . . Piercing Weapon . | . . . Special Melee Weapon . | . . . Unidentified Prototypes . | . . . Parts Lost 3 | . . 3 Power 1 | . . 1 Propulsion 2 | . . 2 Utility . | . . . Weapon . | . . . Highest Loss Streak 3 | . . 3 To Critical Strikes 1 | . . 1 Average Backups 7 | 3 8 12 Power 1 | . 1 2 Propulsion 1 | 1 2 2 Utility 2 | . 2 7 Weapon 1 | 1 1 1 Tool/Special . | . . . Unused Backups 9 | 1 . 8 Power 1 | . . 1 Propulsion . | . . . Utility 6 | . . 6 Weapon 2 | 1 . 1 Tool/Special . | . . . Average Slot Usage (%) 96 | . 100 79 Engine 13 | . 14 8 Leg 1 | . 1 . Wheel 24 | . 26 14 Device 14 | . 14 14 Storage 13 | . 13 14 Ballistic Gun 28 | . 28 28 Peak Build Rating 9 | 9 9 8 Average Rating 6 | 4 7 6 On Entrance 5 | . 9 8 Avg Prop Armor Cover (%) . | . . . Naked Turns . | . . . Heaviest Build 29 | 10 29 28 Greatest Support 20 | 20 20 20 Greatest Overweight (x) 1 | . 1 1 Average Overweight (x) . | . . 1 Largest Inventory Capacity 15 | 5 15 15 Average Capacity 12 | 5 14 15 Most Carried 12 | 5 12 12 Average Carried 7 | 3 8 12 Final Capacity 15 | 5 15 15 Final Carried 12 | 4 12 12 Class Distribution -------------------- 100% | Mutant Dominant Class ---------------- Mutant | -10/Materials Mutant | -10/Mines Resources | -11 -10 -10 ----------- Run | Yrd Mat Min Matter Collected 386 | 308 78 . Remotely . | . . . Salvage Created 234 | 68 166 . Parts 15 | 7 8 . Haulers Intercepted . | . . . Recyclers Shooed 1 | . 1 . Parts Field Recycled . | . . . Retrieved Matter . | . . . Parts Self-Destructed . | . . . Prevented . | . . . Parts Restored . | . . . Kills | -11 -10 -10 ------- Run | Yrd Mat Min Combat Hostiles Destroyed 3 | 1 2 . Guns 3 | 1 2 . Classes Destroyed 3 | 2 1 . Tunneler 1 | 1 . . Recycler 1 | . 1 . Grunt 3 | 1 2 . Best Kill Streak 2 | 1 2 . Combat Bots Only 1 | 1 1 . Max Kills in Single Turn 1 | 1 1 . Gunslinging . | . . . Exploded . | . . . Melee . | . . . Uniques/NPCs Destroyed . | . . . Combat | -11 -10 -10 -------- Run | Yrd Mat Min Hostile Shots Fired 103 | 10 14 79 Missed 26 | 2 4 20 Hits 77 | 8 10 59 Projectile 77 | 8 10 59 Critical Strikes 1 | . . 1 Damage Taken 702 | 87 149 466 Core 251 | 12 42 197 Absorbed by Shields . | . . . Core Remaining (%) 95 | 95 . . Volleys Fired 22 | 9 13 . Largest 2 | 2 2 . Hottest 40 | 40 40 . Shots Fired 44 | 18 26 . Gun 44 | 18 26 . Cannon . | . . . Launcher . | . . . Special . | . . . Kinetic 44 | 18 26 . Thermal . | . . . Explosive . | . . . Electromagnetic . | . . . Robot Hit Streak 12 | 9 12 . Robot Miss Streak 2 | 2 1 . Penetration Max . | . . . Secondary Targets . | . . . Shots Hit Robots 36 | 13 23 . Core Hits 11 | 4 7 . Critical Kills 1 | 1 . . Critical Parts Destroyed 1 | . 1 . Critical Strikes 2 | 1 1 . Destroy 2 | 1 1 . Melee Attacks . | . . . Impact . | . . . Slashing . | . . . Piercing . | . . . Sneak Attacks . | . . . Combat Hostiles . | . . . Follow-up Attacks . | . . . Damage Inflicted 316 | 103 213 . Guns 302 | 103 199 . Cannons . | . . . Explosions . | . . . Melee . | . . . Ramming 14 | . 14 . Kinetic 302 | 103 199 . Thermal . | . . . Explosive . | . . . Electromagnetic . | . . . Impact . | . . . Slashing . | . . . Piercing . | . . . Highest Corruption . | . . . Average Corruption . | . . . Corruption Purged . | . . . Corruption Blocked . | . . . Overload Shots . | . . . Overflow Damage . | . . . Projectiles . | . . . Explosions . | . . . Melee . | . . . Knockbacks . | . . . Impact . | . . . Kinetic . | . . . Secondary . | . . . Self-Inflicted Damage 6 | . 6 . Shots . | . . . Rammed 2 | . 2 . Targets Rammed 2 | . 2 . Kicked . | . . . Crushed . | . . . Highest Temperature 18 | 12 18 . Average Temperature 8 | 7 9 . Received Heat Transfer 129 | 48 81 . Siege Activations . | . . . Martial Activations . | . . . Shielding Activations . | . . . Robots Disrupted . | . . . Combat Hostiles . | . . . Robots Corrupted . | . . . Combat Hostiles . | . . . Parts Fried . | . . . Impact Corruptions . | . . . Robots Melted . | . . . Combat Hostiles . | . . . Parts Melted . | . . . Heat Transferred . | . . . Parts Sabotaged . | . . . Parts Stolen . | . . . Parts Stripped . | . . . Power Chain Reactions . | . . . Alert | -11 -10 -10 ------- Run | Yrd Mat Min Maximum Alert Level . | . . . Low Security (%) 100 | 100 100 100 Level 1 . | . . . Level 2 . | . . . Level 3 . | . . . Level 4 . | . . . Level 5 . | . . . High Security . | . . . Max Security . | . . . Peak Influence 30 | 20 30 . Initial . | . . . Average 4 | 4 5 . Influence Increases 95 | 25 70 . Destroy 0b10 Robot/C 60 | 20 40 . Destroy 0b10 Robot/NC 10 | 5 5 . Destroy Leader 10 | . 10 . Lose Combat Pursuer 15 | . 15 . Influence Decreases 95 | 25 70 . Time Decay 95 | 25 70 . Squads Dispatched . | . . . Investigation . | . . . Extermination . | . . . Reinforcement . | . . . Assault . | . . . Garrison . | . . . Intercept . | . . . Searches Triggered . | . . . Construction Impeded . | . . . Haulers Reinforced . | . . . Active Scanning Responses . | . . . Cargo Convoy Interrupts . | . . . Stealth | -11 -10 -10 --------- Run | Yrd Mat Min Distress Signals . | . . . Communications Jammed . | . . . Distress Signals . | . . . Times Spotted 9 | 1 5 3 Peak Tracking Total 3 | 1 3 3 Tactical Retreats 1 | . 1 . Traps | -11 -10 -10 ------- Run | Yrd Mat Min Traps Triggered . | . . . Indirectly . | . . . Trap Hack Attempts . | . . . Triggered . | . . . Disarmed . | . . . Reprogrammed . | . . . Reused . | . . . Traps Extracted . | . . . Installed . | . . . Triggered . | . . . Machines | -11 -10 -10 ---------- Run | Yrd Mat Min Machines Disabled . | . . . Max in Single Turn . | . . . Machines Repaired . | . . . Machines Dismantled . | . . . Machines Sabotaged . | . . . Overloaded Fab Kills . | . . . Hacking | -11 -10 -10 --------- Run | Yrd Mat Min Machines Accessed 2 | . 2 . Terminals 1 | . 1 . Fabricators . | . . . Repair Stations . | . . . Recycling Units 1 | . 1 . Scanalyzers . | . . . Garrison Access . | . . . Total Hacks 5 | . 5 . Successful 4 | . 4 . Failed 1 | . 1 . Catastrophic . | . . . Database Lockouts . | . . . Manual . | . . . Terminals 3 | . 3 . Fabricators . | . . . Repair Stations . | . . . Recycling Units 2 | . 2 . Scanalyzers . | . . . Garrison Access . | . . . Terminal Hacks 3 | . 3 . Record 3 | . 3 . Fabricator Hacks . | . . . Repair Station Hacks . | . . . Recycling Unit Hacks 1 | . 1 . Recycle Component 1 | . 1 . Scanalyzer . | . . . Garrison Access Hacks . | . . . Unauthorized Hacks . | . . . Terminals . | . . . Fabricators . | . . . Repair Stations . | . . . Recycling Units . | . . . Scanalyzers . | . . . Garrison Access . | . . . Data Cores Recovered . | . . . Used . | . . . Hacking Detections 1 | . 1 . Full Trace Events . | . . . Feedback Events . | . . . Feedback Blocked . | . . . Robot Schematics Acquired . | . . . Robots Built . | . . . Authchips . | . . . Time . | . . . Total Robot Build Rating . | . . . Part Schematics Acquired . | . . . Parts Built . | . . . Authchips . | . . . Time . | . . . Total Part Build Rating . | . . . Part Studies Acquired . | . . . Parts Repaired . | . . . Time . | . . . Parts Recycled 1 | . 1 . Recycled Matter . | . . . Retrieved Matter . | . . . Retrieved Components . | . . . Parts Scanalyzed . | . . . Part Schematics Acquired . | . . . Parts Damaged . | . . . Bothacking | -11 -10 -10 ------------ Run | Yrd Mat Min Used RIF Installer . | . . . Robots Hacked . | . . . Non-combat . | . . . Combat . | . . . Robot Hacks Applied . | . . . Relay Couplers Released . | . . . Fabnet Peak Effective % . | . . . Robots Rewired . | . . . Allies Hacked . | . . . Hacks Repelled . | . . . Allies | -11 -10 -10 -------- Run | Yrd Mat Min Total Allies . | . . . Largest Group . | . . . Highest-Rated Group . | . . . Highest-Rated Ally . | . . . Total Orders . | . . . Ally Attacks . | . . . Total Damage . | . . . Kills . | . . . Allies Corrupted . | . . . Allies Melted . | . . . Intel | -11 -10 -10 ------- Run | Yrd Mat Min Active Infowar (turns) 441 | 30 349 62 Terrain 41 | 27 14 . Seismic 441 | 30 349 62 Robot Analysis Total . | . . . Derelict Logs Recovered . | . . . Drone Launches . | . . . Drone Recoveries . | . . . Exploration | -11 -10 -10 ------------- Run | Yrd Mat Min Turns Passed 560 | 149 349 62 Spaces Moved 370 | 93 264 13 Core 20 | 20 . . Treads . | . . . Legs 84 | 73 11 . Wheels 266 | . 253 13 Hover . | . . . Flight . | . . . Fastest Speed 50 | 50 95 95 Average Speed 98 | 104 96 95 Slowest Speed 120 | 120 120 95 Overloaded Moves . | . . . Propulsion Burnouts . | . . . Robots Hopped . | . . . Potential Cave-ins . | . . . Cave-ins Triggered . | . . . Exploration Rate (%) 15 | 8 31 8 Regions Visited 2 Branch Regions 1 Pre-discovered Areas . | . . . Known Exits Taken . | . . . Unknown Exits Taken 2 | 1 1 . Scrap Searched . | . . . Spaces Dug . | . . . Terrain Destroyed . | . . . Melee . | . . . Projectile . | . . . AOE . | . . . Terrain Rammed . | . . . Walls Destroyed . | . . . Machines Disabled . | . . . Actions | -11 -10 -10 --------- Run | Yrd Mat Min Total 526 | 128 335 63 Wait 98 | 7 41 50 Move 368 | 92 263 13 Hop . | . . . Pick Up 19 | 10 9 . Fast Attach 3 | 2 1 . Attach 5 | 5 . . Detach 1 | . 1 . Swap 6 | 2 4 . Drop 2 | 1 1 . Fire 22 | 9 13 . Melee . | . . . Ram 2 | . 2 . Kick . | . . . Crush . | . . . Escape Stasis . | . . . Rewire . | . . . Trap . | . . . Miscellaneous . | . . . Route ------- -11/Scrapyard -10/Materials -10/Mines History --------- Turn | Location | Event 2 | -11/Scrapyard | Met Revision 17 60 | -11/Scrapyard | Discovered new exit (range 8) 150 | -11/Scrapyard | Entered Materials 302 | -10/Materials | Build established: Mutant 452 | -10/Materials | Discovered new exit (range 16) 499 | -10/Materials | Entered Mines 517 | -10/Mines | Met a Derelict bent on vengeance 524 | -10/Mines | Core integrity fell below 50% 545 | -10/Mines | Core integrity fell below 20% 561 | -10/Mines | Destroyed by S-10 Pest with Light Assault Rifle Last Messages --------------- Acquired 43 matter. Acquired Imp. Heat Sink. Acquired 2 matter. Acquired Tractor Beam. K-01 Serf collects debris. EXIT=FOUND Acquired Hcp. Battery. Connecting with Recycling Unit... >>Recycle(Ion Engine) Accepting Ion Engine... Acquired Med. Matter Pod. LOCATION=UNKNOWN GOAL=ESCAPE Wheel destroyed. Ion Engine destroyed. Critical hit (Destroy). Wheel destroyed. K-01 Serf collects debris. S-10 Pest destroyed. K-01 Serf collects debris. Map ----- +----------------------------------------------------+ | ?????????????????????????????????????????????????? | | ?????????????????????????????????????????????????? | | ?????????????????????????????????????????????????? | | ?????????????????????????????????????????????????? | | ?????????????????????????????????????????????????? | | ?????????????????????????????????????????????????? | | ?????????????????????????????????????????????????? | | ?????????????????????????????????????????????????? | | ?????????????????????????????????????????????????? | | ?????????????????????????????????????????????????? | | ?????????????????????????????????????????????????? | | ????????????????????????????? ???????????????????? | | ????????????????????????????? #??????????????????? | | ????????????????????????????? #??????????????????? | | ???????????????????????????? #??????????????????? | | ???????????????????????????? ##?????????????????? | | ???????????????????????????? ##????????????????? | | ??????????????????????????? #????????????????? | | ??????????????????????????? ##???????????????? | | ??????????????????????????? ####????????????? | | ???????????????????######## ?????????????? | | ???????????????????? # = s ???????????????? | | ????????????????????? [% ?????????????????? | | ??????????????????????# * ???????????????????? | | ??????????????????????# s#????????????????????? | | ??????????????????????# @ #?????????????????????? | | ??????????????????????# ###?????????????????????? | | ??????????????????????# #???????????????????????? | | ??????????????????????# #???????????????????????? | | ??????????????????????# #???????????????????????? | | ???????????????????#### #???????????????????????? | | ???????????????????# # ######??????????????????? | | ???????????????????# #??????????????????? | | ???????????????????# ! #??????????????????? | | ???????????????????## ! #??????????????????? | | ????????????????????## !! #??????????????????? | | ?????????????????????## !! #??????????????????? | | ??????????????????????## #??????????????????? | | ???????????????????????########??????????????????? | | ?????????????????????????????????????????????????? | | ?????????????????????????????????????????????????? | | ?????????????????????????????????????????????????? | | ?????????????????????????????????????????????????? | | ?????????????????????????????????????????????????? | | ?????????????????????????????????????????????????? | | | | | | | | | | | +----------------------------------------------------+ Best States ------------- Heat Dissipation 25 Energy Generation 10 Energy Capacity 250 Matter Stores 300 Matter Capacity 300 Sight Range 16 Terrain Scan Range 16 Terrain Scan Density 10 Evasion (%) 55 Item Schematics ----------------- None Robot Schematics ------------------ None Fabricated ------------ Nothing Repaired ---------- Nothing Studied --------- None Alien Tech Used ----------------- None Achievements -------------- For Emergencies Only Organ Harvest Challenges ------------ None Game ------ Seed LegRecoilReconstructor Manual? 0 Play Time 00:17:58 Cumulative 0.2 hours Start 2025.11.08 @ 22:08:00 End 2025.11.08 @ 22:27:39 Sessions 1 Manual Loads 0 Difficulty Rogue Special Mode None Game No. 1 Rogue 1 Adventurer 0 Explorer 0 Win Type - Total 0 Types 0/0/0/0/0/0/0/0/0/0 Lore% 0 Gallery% 0 Achievement% 18 Wizard Run 0 Options --------- Layout 1 ASCII 0 Keyboard 0 Movement Mouse Keybinds 0 Fullscreen 1 Font 24/Smallcaps Map View 50x35 Zoom Use 0% Tactical HUD 0 Map Filters NONE Filters NONE Steam 1 RUN: e809d078-3c92-424b-ae25-720b172d71db